bitfinex/quotes_BTCUSD_20251214
["timestamp","ask_amount","ask_price","bid_price","bid_amount"]
[1765744574650,6.53e-05,88660.0,88659.0,0.12000687]
[1765744586358,6.53e-05,88660.0,88659.0,0.10363171]
[1765744587187,6.53e-05,88660.0,88659.0,0.12000746]
[1765744588886,6.53e-05,88660.0,88659.0,0.10363171]
[1765744595786,0.11243276,88660.0,88659.0,0.10363171]
[1765744595926,6.53e-05,88660.0,88659.0,0.10363171]
[1765744602711,6.53e-05,88660.0,88659.0,0.12143171]
[1765744621105,6.53e-05,88660.0,88659.0,0.10363171]
[1765744621359,6.53e-05,88660.0,88659.0,0.12143171]
[1765744628254,6.53e-05,88660.0,88659.0,0.13781107]
[1765744629166,6.53e-05,88660.0,88659.0,0.12143171]
[1765744630688,0.12360861,88672.0,88669.0,0.01127789]
[1765744630873,0.12360861,88672.0,88671.0,0.11310746]
[1765744632683,0.12360861,88672.0,88664.0,0.03385876]
[1765744632684,0.2255666,88666.0,88664.0,0.03385876]
[1765744632885,0.2255666,88666.0,88640.0,0.0865499]
[1765744632886,0.01127738,88673.0,88640.0,0.0865499]
[1765744632887,0.01128082,88646.0,88640.0,0.14767746]
[1765744633087,0.41068271,88674.0,88640.0,0.14767746]
[1765744633088,0.1123311,88648.0,88645.0,0.23689883]
[1765744633325,0.03386721,88665.0,88652.0,0.01128006]
[1765744633326,0.23686596,88658.0,88652.0,0.01128006]
[1765744633525,0.01127929,88658.0,88654.0,0.01751]
[1765744633729,0.01127967,88655.0,88653.0,0.03386373]
[1765744634462,0.01127967,88655.0,88654.0,0.11310746]
[1765744634871,0.01127967,88655.0,88649.0,0.22560693]
[1765744634872,0.22562667,88642.0,88640.0,0.00838607]
[1765744635050,0.33795777,88642.0,88641.0,0.11310746]
[1765744636372,0.33795777,88642.0,88641.0,0.11410746]
[1765744636719,0.33795777,88642.0,88641.0,0.001]
[1765744636920,0.33795777,88642.0,88641.0,0.003]
[1765744640049,0.01128069,88647.0,88641.0,0.003]
[1765744640050,0.22653004,88680.0,88649.0,0.22560391]
[1765744640263,0.01702,88699.0,88673.0,0.04106287]
[1765744640472,0.01702,88699.0,88684.0,0.01127599]
[1765744640473,0.01127497,88692.0,88684.0,0.01127599]
[1765744640763,0.01127497,88692.0,88681.0,0.01127637]
[1765744640764,0.01043,88685.0,88682.0,0.01127624]
[1765744641194,0.22549817,88693.0,88679.0,0.30197662]
[1765744641195,0.01127471,88694.0,88688.0,0.01127548]
[1765744641359,6.531e-05,88694.0,88690.0,0.01127522]
[1765744641597,6.531e-05,88694.0,88689.0,0.01127535]
[1765744641918,0.01134002,88694.0,88687.0,0.0112756]
[1765744642116,6.531e-05,88694.0,88691.0,0.0112751]
[1765744642542,0.00106531,88694.0,88691.0,0.0112751]
[1765744642662,6.531e-05,88694.0,88691.0,0.0112751]
[1765744642858,0.03753,88693.0,88692.0,0.22549948]
[1765744643288,0.03753,88693.0,88683.0,0.01702]
[1765744643289,0.0112756,88687.0,88683.0,0.01702]
[1765744643490,0.0112756,88687.0,88678.0,0.01127675]
[1765744643491,0.02455,88684.0,88681.0,0.01127637]
[1765744643958,0.02455,88682.0,88681.0,0.01127637]
[1765744644367,0.06208,88682.0,88681.0,0.01127637]
[1765744645417,0.02455,88682.0,88681.0,0.01227637]
[1765744645642,0.02455,88682.0,88681.0,0.01327637]
[1765744646296,0.02455,88682.0,88681.0,0.01227637]
[1765744646565,0.01687,88685.0,88681.0,0.01227637]
[1765744646566,0.01687,88685.0,88682.0,0.23680114]
[1765744647558,0.01687,88685.0,88684.0,0.22551982]
[1765744648184,6.531e-05,88694.0,88691.0,0.0112751]
[1765744648392,6.531e-05,88694.0,88691.0,0.23677712]
[1765744648865,6.531e-05,88694.0,88691.0,0.0112751]
[1765744649011,0.03758,88693.0,88691.0,0.0112751]
[1765744649210,0.02361,88692.0,88691.0,0.0112751]
[1765744649480,0.02361,88692.0,88690.0,0.01127522]
[1765744649613,0.06119,88691.0,88690.0,0.01127522]
[1765744649816,0.06119,88691.0,88690.0,0.23677978]
[1765744650212,0.06119,88691.0,88687.0,0.0112756]
[1765744650481,0.01564,88688.0,88684.0,0.01288886]
[1765744650604,0.02361,88685.0,88684.0,0.01288886]
[1765744651007,0.06119,88685.0,88684.0,0.01288886]
[1765744651212,0.06119,88685.0,88684.0,0.04674093]
[1765744651805,0.06119,88685.0,88684.0,0.03485207]
[1765744653063,0.06119,88685.0,88684.0,0.03685207]
[1765744653287,0.01772,88709.0,88693.0,0.22549693]
[1765744653426,0.03758,88714.0,88693.0,0.22549693]
[1765744653427,0.01127116,88722.0,88693.0,0.5423698]
[1765744653634,0.0338436,88721.0,88693.0,0.5798598]
[1765744653882,0.01127141,88720.0,88693.0,0.5798598]
[1765744654077,0.01127154,88719.0,88693.0,0.5798598]
[1765744654322,0.01127128,88721.0,88693.0,0.6922598]
[1765744654526,0.01127141,88720.0,88693.0,0.6922598]
[1765744654739,0.04885141,88720.0,88693.0,0.6922598]
[1765744655112,0.04885141,88720.0,88693.0,0.6982598]
[1765744655313,0.00106531,88694.0,88693.0,0.6922598]
[1765744655704,6.531e-05,88694.0,88693.0,0.6972598]
[1765744656060,6.531e-05,88694.0,88693.0,0.7012598]
[1765744656364,6.531e-05,88694.0,88693.0,0.75127819]
[1765744658514,0.0004,88718.0,88704.0,0.56618736]
[1765744658759,0.0004,88718.0,88704.0,0.61016023]
[1765744658972,0.0004,88718.0,88704.0,0.64765023]
[1765744659895,0.0004,88718.0,88704.0,0.64965023]
[1765744660759,0.0004,88718.0,88704.0,0.65165023]
[1765744669418,0.0004,88718.0,88704.0,0.70795524]
[1765744673290,0.11238438,88727.0,88721.0,0.01127128]
[1765744673491,0.11244968,88727.0,88726.0,0.11310746]
[1765744674498,0.11344968,88727.0,88726.0,0.11310746]
[1765744674661,0.33886032,88727.0,88726.0,0.11310746]
[1765744674864,0.33986032,88727.0,88726.0,0.11310746]
[1765744675215,0.40305032,88727.0,88726.0,0.11310746]
[1765744675827,0.0040653,88727.0,88726.0,0.19450033]
[1765744675963,0.0040653,88727.0,88726.0,0.15701033]
[1765744676161,0.0040653,88727.0,88726.0,0.13245033]
[1765744676592,0.0020653,88727.0,88726.0,0.13245033]
[1765744677023,6.53e-05,88727.0,88726.0,0.11310746]
[1765744677235,0.11238438,88725.0,88722.0,0.01127116]
[1765744677466,0.11344968,88727.0,88722.0,0.01127116]
[1765744677771,0.0112709,88724.0,88721.0,0.00639]
[1765744677971,0.0112709,88724.0,88720.0,0.13090746]
[1765744677972,0.01127103,88723.0,88720.0,0.13090746]
[1765744678171,0.0112709,88724.0,88720.0,0.14217887]
[1765744678594,0.23669154,88724.0,88720.0,0.13090746]
[1765744679051,0.23669154,88724.0,88714.0,0.23671426]
[1765744679052,0.01127281,88709.0,88705.0,0.01861]
[1765744679258,0.23672107,88712.0,88711.0,0.13090746]
[1765744680032,0.0302623,88713.0,88711.0,0.13090746]
[1765744680829,0.01899,88713.0,88711.0,0.13090746]
[1765744681045,0.11238438,88715.0,88712.0,0.01127243]
[1765744681333,0.11238438,88715.0,88713.0,0.2254461]
[1765744682062,0.12365643,88715.0,88712.0,0.01127243]
[1765744682243,0.11238438,88715.0,88712.0,0.01227243]
[1765744688494,0.34909748,88715.0,88712.0,0.001]
[1765744689240,0.12365643,88715.0,88712.0,0.001]
[1765744690302,0.12365643,88715.0,88712.0,0.01227243]
[1765744690303,0.11238438,88715.0,88712.0,0.01227243]
[1765744691274,0.01127141,88720.0,88712.0,0.01227243]
[1765744691275,0.23668371,88726.0,88721.0,0.01127128]
[1765744691521,0.23668371,88726.0,88722.0,0.22542074]
[1765744691522,0.01055464,88725.0,88722.0,0.22542074]
[1765744691731,0.01055464,88728.0,88725.0,0.26863329]
[1765744691928,0.28666808,88732.0,88725.0,0.26863329]
[1765744691929,0.01127014,88730.0,88725.0,0.26863329]
[1765744692380,0.01127027,88729.0,88725.0,0.01861]
[1765744692570,0.01127027,88729.0,88726.0,0.11310746]
[1765744693588,0.0020653,88727.0,88726.0,0.11310746]
[1765744694032,6.53e-05,88727.0,88726.0,0.11310746]
[1765744694271,0.0040653,88727.0,88726.0,0.11310746]
[1765744694844,0.0020653,88727.0,88726.0,0.11310746]
[1765744695456,6.53e-05,88727.0,88726.0,0.11310746]
[1765744695880,0.0010653,88727.0,88726.0,0.11310746]
[1765744696304,0.0020653,88727.0,88726.0,0.11310746]
[1765744698511,0.0210953,88727.0,88726.0,0.11310746]
[1765744698926,0.0020653,88727.0,88726.0,0.36313052]
[1765744699133,0.0020653,88727.0,88726.0,0.11310746]
[1765744700304,0.0020653,88727.0,88726.0,0.15064746]
[1765744700510,0.0020653,88727.0,88726.0,0.11310746]
[1765744701710,0.0020653,88727.0,88726.0,0.17687033]
[1765744702484,0.05,88732.0,88726.0,0.17687033]
[1765744702485,0.05,88732.0,88730.0,0.2254029]
[1765744702710,0.05,88732.0,88731.0,0.09822]
[1765744702914,0.05,88732.0,88731.0,0.09983287]
[1765744703965,0.052,88732.0,88731.0,0.09983287]
[1765744705809,0.053,88732.0,88731.0,0.09983287]
[1765744708427,0.053,88732.0,88731.0,0.03768287]
[1765744709250,0.053,88732.0,88731.0,0.01941287]
[1765744709457,0.16538438,88732.0,88731.0,0.01941287]
[1765744710467,0.16538438,88732.0,88729.0,0.2446084]
[1765744710468,0.22540036,88731.0,88729.0,0.0079347]
[1765744710627,0.13640438,88730.0,88729.0,0.0079347]
[1765744710830,0.17243438,88730.0,88729.0,0.0079347]
[1765744711286,0.06005,88730.0,88729.0,0.0079347]
[1765744712017,0.06205,88730.0,88729.0,0.0079347]
[1765744712984,0.002,88730.0,88729.0,0.0336647]
[1765744713180,0.002,88730.0,88729.0,0.08700973]
[1765744714565,0.001,88730.0,88729.0,0.08700973]
[1765744714765,0.05,88732.0,88730.0,0.2254029]
[1765744714898,0.05,88732.0,88731.0,0.02573]
[1765744715100,0.05,88732.0,88731.0,0.06106]
[1765744716302,0.05,88732.0,88731.0,0.06306]
[1765744718005,0.05,88732.0,88731.0,0.06506]
[1765744718157,0.05,88732.0,88731.0,0.06667287]
[1765744720480,0.11005,88732.0,88731.0,0.22940036]
[1765744720690,0.22243438,88732.0,88731.0,0.004]
[1765744721105,0.11005,88732.0,88729.0,0.2446084]
[1765744721310,0.11238438,88730.0,88729.0,0.2446084]
[1765744721951,0.11238438,88730.0,88729.0,0.0079347]
[1765744722362,0.11238438,88730.0,88729.0,0.0089347]
[1765744724214,0.11238438,88730.0,88729.0,0.0099347]
[1765744724590,0.02402,88730.0,88729.0,0.0099347]
[1765744724797,0.17243438,88730.0,88729.0,0.0099347]
[1765744727742,0.46313438,88730.0,88729.0,0.0099347]
[1765744728159,0.5040423,88730.0,88729.0,0.0097547]
[1765744728325,0.52219881,88730.0,88729.0,0.0097547]
[1765744728525,0.51614177,88730.0,88729.0,0.0087547]
[1765744728931,0.52314177,88730.0,88729.0,0.0087547]
[1765744729131,0.49884911,88730.0,88729.0,0.0087547]
[1765744729383,0.53514177,88730.0,88729.0,0.0097547]
[1765744729790,0.52814177,88730.0,88729.0,0.0087547]
[1765744730387,0.52216448,88730.0,88729.0,0.0077547]
[1765744730633,0.54645714,88730.0,88729.0,0.0077547]
[1765744730966,0.55945714,88730.0,88729.0,0.0087547]
[1765744731267,0.55845714,88730.0,88729.0,0.0087547]
[1765744731474,0.01127713,88675.0,88664.0,0.01127853]
[1765744731675,0.01127713,88675.0,88655.0,0.01669]
[1765744731676,0.23683736,88669.0,88668.0,0.00167817]
[1765744731875,0.34922174,88669.0,88668.0,0.00167817]
[1765744732473,0.40927174,88669.0,88668.0,0.00167817]
[1765744733098,0.40927174,88669.0,88668.0,0.00267817]
[1765744733738,0.40927174,88669.0,88668.0,0.00667817]
[1765744733940,0.40927174,88669.0,88668.0,0.00267817]
[1765744734150,0.40927174,88669.0,88668.0,0.00167817]
[1765744734775,0.41027174,88669.0,88668.0,0.00167817]
[1765744734975,0.41127174,88669.0,88668.0,0.00167817]
[1765744737094,0.37524174,88669.0,88668.0,0.00167817]
[1765744741550,0.37524174,88669.0,88668.0,0.06147817]
[1765744741551,0.002,88669.0,88668.0,0.06147817]
[1765744741800,0.002,88669.0,88668.0,0.43636952]
[1765744742011,0.002,88669.0,88668.0,0.4538486]
[1765744742676,0.01127535,88689.0,88685.0,0.01127586]
[1765744742849,0.01127535,88689.0,88688.0,0.13045746]
[1765744743464,0.01127535,88689.0,88688.0,0.13207033]
[1765744744112,0.01127522,88690.0,88688.0,0.13307033]
[1765744744584,0.01127522,88690.0,88688.0,0.13407033]
[1765744745001,0.01127522,88690.0,88688.0,0.11672033]
[1765744745002,0.11238438,88689.0,88688.0,0.11672033]
[1765744745236,0.14956438,88689.0,88688.0,0.11572033]
[1765744745421,0.11238438,88689.0,88688.0,0.11672033]
[1765744746056,0.11238438,88689.0,88688.0,0.11572033]
[1765744746269,0.02367,88689.0,88688.0,0.11572033]
[1765744746486,0.23678001,88690.0,88688.0,0.11672033]
[1765744746697,0.11238438,88689.0,88688.0,0.11472033]
[1765744747207,0.11238438,88689.0,88688.0,0.11672033]
[1765744747441,0.11238438,88689.0,88688.0,0.11572033]
[1765744748818,0.12365948,88691.0,88688.0,0.11572033]
[1765744748975,0.01127497,88692.0,88688.0,0.12699581]
[1765744749347,0.01127459,88695.0,88688.0,0.12799581]
[1765744749561,0.01127459,88695.0,88694.0,0.01127471]
[1765744749562,0.11238438,88695.0,88694.0,0.01127471]
[1765744749765,0.11238438,88694.0,88693.0,0.01127484]
[1765744750414,0.11238438,88691.0,88689.0,0.26247651]
[1765744750854,0.11238438,88691.0,88689.0,0.26408938]
[1765744751059,0.12365846,88699.0,88696.0,0.01127446]
[1765744751275,0.01127433,88697.0,88693.0,0.02283]
[1765744751688,0.01127459,88695.0,88691.0,0.23677712]
[1765744751864,0.11238438,88692.0,88691.0,0.23838999]
[1765744752276,0.11238438,88692.0,88691.0,0.23845529]
[1765744753272,0.11238438,88692.0,88691.0,0.24045529]
[1765744754255,0.11238438,88692.0,88691.0,0.24245529]
[1765744757103,0.11238438,88692.0,88691.0,0.25914529]
[1765744757309,0.11238438,88692.0,88691.0,0.02236817]
[1765744757488,0.11238438,88692.0,88691.0,0.00567817]
[1765744758520,0.11238438,88692.0,88691.0,0.00367817]
[1765744758765,0.11238438,88692.0,88691.0,0.00467817]
[1765744758968,0.11238438,88692.0,88691.0,0.00267817]
[1765744759437,0.11238438,88692.0,88691.0,0.00367817]
[1765744759881,0.11238438,88702.0,88699.0,0.01127408]
[1765744760078,0.23675043,88701.0,88697.0,0.01127433]
[1765744760970,0.22546606,88706.0,88697.0,0.01127433]
[1765744760971,0.34911162,88710.0,88706.0,0.01127319]
[1765744761095,0.01127294,88708.0,88705.0,0.01127332]
[1765744761298,0.23673189,88708.0,88707.0,0.11310746]
[1765744761508,0.34911627,88708.0,88707.0,0.11310746]
[1765744762150,0.23673189,88708.0,88707.0,0.11310746]
[1765744762550,0.23773189,88708.0,88707.0,0.11310746]
[1765744763157,0.01227294,88708.0,88707.0,0.11310746]
[1765744763577,0.01327294,88708.0,88707.0,0.11310746]
[1765744765460,0.01327294,88708.0,88707.0,0.13593746]
[1765744765718,0.01327294,88708.0,88707.0,0.11310746]
[1765744767061,0.12565732,88708.0,88707.0,0.11310746]
[1765744770617,0.35111612,88708.0,88707.0,0.11310746]
[1765744789694,0.11438438,88708.0,88707.0,0.11310746]
[1765744790727,0.002,88708.0,88707.0,0.15095746]
[1765744790932,0.002,88708.0,88707.0,0.18471746]
[1765744791133,0.002,88708.0,88707.0,0.15095746]
[1765744795609,0.002,88708.0,88707.0,0.12868746]
[1765744796867,0.11438438,88708.0,88707.0,0.12868746]
[1765744803215,0.11438438,88708.0,88707.0,0.11310746]
[1765744803841,0.33784318,88708.0,88707.0,0.11310746]
[1765744804058,0.33784318,88708.0,88707.0,0.11410746]
[1765744804247,0.33784318,88708.0,88707.0,0.11510746]
[1765744804477,0.11238438,88708.0,88707.0,0.11510746]
[1765744804700,0.11238438,88708.0,88707.0,0.34056881]
[1765744804967,0.11238438,88708.0,88707.0,0.39536881]
[1765744805598,0.11238438,88708.0,88707.0,0.36198881]
[1765744805817,0.11238438,88708.0,88707.0,0.34056881]
[1765744806214,0.11238438,88712.0,88710.0,0.01127268]
[1765744809348,0.11238438,88712.0,88711.0,0.22545118]
[1765744810347,0.11238438,88712.0,88710.0,0.01127268]
[1765744810545,0.11238438,88713.0,88712.0,0.01127243]
[1765744812180,0.01127205,88715.0,88714.0,0.01127217]
[1765744812181,0.11238438,88715.0,88714.0,0.01127217]
[1765744812379,0.23669102,88724.0,88714.0,0.01127217]
[1765744812380,0.12365528,88724.0,88720.0,0.01127141]
[1765744812615,0.12365528,88724.0,88723.0,0.11310746]
[1765744813483,0.34907343,88724.0,88723.0,0.11310746]
[1765744813686,0.35107343,88724.0,88723.0,0.11310746]
[1765744813886,0.35007343,88724.0,88723.0,0.11310746]
[1765744814308,0.35207343,88724.0,88723.0,0.11310746]
[1765744815153,0.35107343,88724.0,88723.0,0.11310746]
[1765744815307,0.11638438,88724.0,88723.0,0.11310746]
[1765744815906,0.11438438,88724.0,88723.0,0.11310746]
[1765744816112,0.11538438,88724.0,88723.0,0.11310746]
[1765744816321,0.11338438,88724.0,88723.0,0.11310746]
[1765744816725,0.11438438,88724.0,88723.0,0.11310746]
[1765744817242,0.002,88724.0,88723.0,0.33852815]
[1765744817418,0.11438438,88724.0,88723.0,0.33852815]
[1765744817848,0.11238438,88721.0,88719.0,0.01127154]
[1765744818713,0.11238438,88721.0,88718.0,0.01127166]
[1765744818887,0.11238438,88721.0,88718.0,0.01133696]
[1765744819604,0.12365566,88721.0,88718.0,0.01133696]
[1765744819807,0.12365566,88721.0,88718.0,6.53e-05]
[1765744820212,0.01654,88719.0,88718.0,6.53e-05]
[1765744820422,0.15239438,88719.0,88718.0,6.53e-05]
[1765744820686,0.18461438,88719.0,88718.0,6.53e-05]
[1765744822446,0.18661438,88719.0,88718.0,6.53e-05]
[1765744823701,0.13092438,88719.0,88718.0,6.53e-05]
[1765744823887,0.18661438,88719.0,88718.0,6.53e-05]
[1765744843347,0.18561438,88719.0,88718.0,6.53e-05]
[1765744843808,0.18861438,88719.0,88718.0,6.53e-05]
[1765744844252,0.18761438,88719.0,88718.0,6.53e-05]
[1765744844683,0.18961438,88719.0,88718.0,6.53e-05]
[1765744853567,0.20088795,88719.0,88718.0,6.53e-05]
[1765744860289,0.08850357,88719.0,88718.0,6.53e-05]
[1765744860491,0.20088795,88719.0,88718.0,6.53e-05]
[1765744860666,0.21145442,88719.0,88718.0,6.53e-05]
[1765744861214,0.09907004,88719.0,88718.0,6.53e-05]
[1765744861600,0.23576352,88719.0,88718.0,6.53e-05]
[1765744862180,0.23576352,88719.0,88684.0,0.26739334]
[1765744862181,0.01127904,88660.0,88652.0,0.01507]
[1765744862397,0.11238438,88656.0,88654.0,0.0263498]
[1765744862613,0.11238438,88656.0,88654.0,0.01668287]
[1765744862823,0.11238438,88656.0,88655.0,0.05091]
[1765744863046,0.11238438,88656.0,88655.0,0.02031]
[1765744863476,0.11238438,88656.0,88654.0,0.01668287]
[1765744863905,0.11238438,88656.0,88654.0,0.00161287]
[1765744864354,0.11238438,88656.0,88655.0,0.003]
[1765744864563,0.36487764,88655.0,88652.0,0.00038607]
[1765744864795,0.13404438,88653.0,88652.0,0.00038607]
[1765744865189,0.16716438,88653.0,88652.0,0.00038607]
[1765744865944,0.16716438,88653.0,88652.0,0.00338607]
[1765744866751,0.05478,88653.0,88652.0,0.00338607]
[1765744867006,0.16716438,88653.0,88652.0,0.00338607]
[1765744867151,0.16716438,88653.0,88652.0,0.00538607]
[1765744868684,0.16716438,88653.0,88652.0,0.00238607]
[1765744869510,0.16716438,88653.0,88652.0,0.00038607]
[1765744873320,0.01128107,88654.0,88652.0,0.00038607]
[1765744873321,0.01128107,88654.0,88652.0,0.05326894]
[1765744873463,0.01127955,88656.0,88653.0,0.05127]
[1765744873663,0.01127955,88656.0,88653.0,0.05288287]
[1765744874519,0.01127942,88657.0,88653.0,0.0641628]
[1765744874952,0.01127942,88657.0,88654.0,0.0112798]
[1765744875154,0.01127904,88660.0,88656.0,0.13549033]
[1765744875354,0.11238438,88662.0,88661.0,0.01127891]
[1765744875583,0.11238438,88660.0,88659.0,0.04692917]
[1765744875721,0.11238438,88660.0,88659.0,0.02615917]
[1765744876335,0.01127828,88666.0,88660.0,0.01127904]
[1765744876533,0.11238438,88662.0,88661.0,0.01227891]
[1765744876760,0.11238438,88662.0,88661.0,0.01127891]
[1765744876963,0.01127866,88663.0,88660.0,0.01127904]
[1765744877135,0.11238438,88661.0,88660.0,0.01127904]
[1765744878644,0.11238438,88661.0,88660.0,0.01227904]
[1765744879076,0.11238438,88661.0,88660.0,0.001]
[1765744879868,0.11238438,88661.0,88660.0,0.002]
[1765744885615,0.11238438,88661.0,88660.0,0.01327904]
[1765744885852,0.11238438,88661.0,88660.0,0.002]
[1765744886928,0.23685397,88663.0,88660.0,0.002]
[1765744887905,0.23685397,88663.0,88660.0,0.001]
[1765744888064,0.01438,88664.0,88660.0,0.001]
[1765744888273,0.11238438,88661.0,88660.0,0.01327904]
[1765744888517,0.11238438,88661.0,88660.0,0.01227904]
[1765744888895,0.11238438,88661.0,88660.0,0.01327904]
[1765744889142,0.11238438,88661.0,88660.0,0.01227904]
[1765744889680,0.01127866,88663.0,88660.0,0.01227904]
[1765744889886,0.01127866,88663.0,88660.0,0.01327904]
[1765744890277,0.01127866,88663.0,88660.0,0.01227904]
[1765744890703,0.01127866,88663.0,88660.0,0.01327904]
[1765744891100,0.01127866,88663.0,88660.0,0.01227904]
[1765744891438,0.01127866,88663.0,88660.0,0.01327904]
[1765744891641,0.01127866,88663.0,88660.0,0.01227904]
[1765744891948,0.01127866,88663.0,88660.0,0.01327904]
[1765744894687,0.11238438,88661.0,88660.0,0.23885967]
[1765744895650,0.11238438,88661.0,88660.0,0.23685967]
[1765744895851,0.11238438,88661.0,88660.0,0.01227904]
[1765744896056,0.11238438,88661.0,88660.0,0.01327904]
[1765744896950,0.3895727,88661.0,88660.0,0.002]
[1765744897110,0.27718832,88661.0,88660.0,0.002]
[1765744897303,0.3895727,88661.0,88660.0,0.002]
[1765744897787,0.3895727,88661.0,88660.0,0.001]
[1765744898013,0.40012693,88661.0,88660.0,0.001]
[1765744898222,0.28774255,88661.0,88660.0,0.002]
[1765744898435,0.28774255,88661.0,88660.0,0.001]
[1765744898436,0.42443866,88661.0,88660.0,0.001]
[1765744898634,0.46496441,88661.0,88660.0,0.001]
[1765744898915,0.46496441,88661.0,88623.0,0.0004]
[1765744898916,0.62868306,88653.0,88623.0,0.0004]
[1765744899129,0.70242902,88653.0,88623.0,0.0004]
[1765744899339,0.79369717,88653.0,88623.0,0.0004]
[1765744900007,0.73295902,88653.0,88623.0,0.0004]
[1765744900137,0.70864729,88653.0,88623.0,0.0004]
[1765744900351,0.73292725,88653.0,88623.0,0.0004]
[1765744900761,0.74192725,88653.0,88652.0,0.00138607]
[1765744900971,0.75092725,88653.0,88652.0,0.00238607]
[1765744903223,0.76706324,88653.0,88652.0,0.00238607]
[1765744903425,0.7913432,88653.0,88652.0,0.00238607]
[1765744904034,0.75092725,88653.0,88652.0,0.00238607]
[1765744904875,0.75088852,88653.0,88652.0,0.00238607]
[1765744909269,0.78116017,88653.0,88652.0,0.00238607]
[1765744911117,0.75088852,88653.0,88652.0,0.00238607]
[1765744911322,0.78116017,88653.0,88652.0,0.00238607]
[1765744911759,0.75691894,88653.0,88652.0,0.00238607]
[1765744911938,0.72664729,88653.0,88652.0,0.00238607]
[1765744920055,0.70884729,88653.0,88652.0,0.00238607]
[1765744920256,0.71609306,88653.0,88652.0,0.00238607]
[1765744922097,0.69829306,88653.0,88652.0,0.00238607]
[1765744922304,0.40759306,88653.0,88652.0,0.00238607]
[1765744922516,0.35598306,88653.0,88652.0,0.05070607]
[1765744922908,0.35598306,88653.0,88652.0,0.02151607]
[1765744923137,0.35598306,88653.0,88652.0,0.05231894]
[1765744923667,0.12138438,88653.0,88652.0,0.05131894]
[1765744923847,0.12138438,88653.0,88652.0,0.1161064]
[1765744924050,0.12238438,88653.0,88652.0,0.1161064]
[1765744924255,0.12138438,88653.0,88652.0,0.1161064]
[1765744924551,0.11238438,88653.0,88652.0,0.1151064]
[1765744924852,0.11238438,88653.0,88652.0,0.1644264]
[1765744924853,0.001,88653.0,88652.0,0.1644264]
[1765744925351,0.12366405,88655.0,88652.0,0.1644264]
[1765744925550,0.12366405,88655.0,88654.0,0.01913]
[1765744925753,0.12366405,88655.0,88654.0,0.02074287]
[1765744925915,0.12366405,88655.0,88654.0,0.04993287]
[1765744926123,0.01127967,88655.0,88654.0,0.04993287]
[1765744926339,0.01127967,88655.0,88654.0,0.02074287]
[1765744926545,0.12366405,88655.0,88654.0,0.00161287]
[1765744930799,0.12366405,88655.0,88654.0,0.03080287]
[1765744931004,0.12366405,88655.0,88654.0,0.04993287]
[1765744934812,0.01127967,88655.0,88654.0,0.04993287]
[1765744935029,0.01127955,88656.0,88654.0,0.04993287]
[1765744935237,0.01127955,88656.0,88655.0,0.04832]
[1765744936536,0.01127955,88656.0,88655.0,0.04993287]
[1765744937862,0.11238438,88660.0,88657.0,0.01127942]
[1765744938063,0.12366342,88660.0,88657.0,0.01127942]
[1765744938290,0.12366342,88660.0,88657.0,0.04046942]
[1765744938651,0.22558341,88659.0,88657.0,0.02919]
[1765744939022,0.23686276,88659.0,88656.0,0.01446]
[1765744939378,0.01127917,88659.0,88656.0,0.04365]
[1765744939756,0.22558595,88658.0,88656.0,0.04365]
[1765744940498,0.11238438,88657.0,88656.0,0.04365]
[1765744941892,0.11338438,88657.0,88656.0,0.04365]
[1765744943533,0.11338438,88657.0,88656.0,0.01446]
[1765744947369,0.22559104,88656.0,88652.0,0.00038607]
[1765744947606,0.37215306,88653.0,88652.0,0.00038607]
[1765744948511,0.33798306,88653.0,88652.0,0.00038607]
[1765744949172,0.33798306,88653.0,88652.0,0.00138607]
[1765744951138,0.11238438,88653.0,88652.0,0.00138607]
[1765744951341,0.11238438,88653.0,88652.0,0.11449353]
[1765744951543,0.23687326,88655.0,88652.0,0.11449353]
[1765744951747,0.11238438,88653.0,88652.0,0.11449353]
[1765744952348,0.11238438,88653.0,88652.0,0.11349353]
[1765744952705,0.11238438,88653.0,88652.0,0.11449353]
[1765744952910,0.11238438,88653.0,88652.0,0.11349353]
[1765744953201,0.11238438,88653.0,88652.0,0.11449353]
[1765744953864,0.33798306,88653.0,88652.0,0.11449353]
[1765744957216,0.11238438,88653.0,88652.0,0.11449353]
[1765744959600,0.34924999,88658.0,88654.0,0.0112798]
[1765744959822,0.01127942,88657.0,88654.0,0.0307098]
[1765744959983,0.01127942,88657.0,88655.0,0.02973]
[1765744962631,0.11238438,88656.0,88655.0,0.02973]
[1765744962970,0.11238438,88656.0,88655.0,0.04916]
[1765744964231,0.11238438,88654.0,88653.0,0.02482993]
[1765744964887,0.11238438,88654.0,88653.0,0.25204148]
[1765744965089,0.11238438,88654.0,88653.0,0.30120148]
[1765744965933,0.11238438,88654.0,88653.0,0.0756028]
[1765744969179,0.23686508,88659.0,88653.0,0.0756028]
[1765744969180,0.34923916,88662.0,88657.0,0.01127942]
[1765744969383,0.01127929,88658.0,88655.0,0.01943]
[1765744969584,0.01127942,88657.0,88654.0,0.02973]
[1765744969785,0.11238438,88654.0,88653.0,0.0264428]
[1765744970473,0.11238438,88654.0,88653.0,0.0561728]
[1765744971080,0.11238438,88654.0,88653.0,0.0756028]
[1765744971375,0.11238438,88654.0,88653.0,0.30120148]
[1765744972785,0.11238438,88654.0,88653.0,0.0756028]
[1765744973018,0.11238438,88654.0,88653.0,0.11472033]
[1765744973219,0.11238438,88655.0,88653.0,0.11472033]
[1765744974139,0.11238438,88655.0,88654.0,0.0127]
[1765744976083,0.33797797,88655.0,88654.0,0.01431287]
[1765744980796,0.01361,88678.0,88665.0,0.0112784]
[1765744981002,0.01361,88688.0,88682.0,0.01127624]
[1765744981003,0.01127573,88686.0,88682.0,0.01127624]
[1765744981202,0.12365998,88687.0,88682.0,0.01127624]
[1765744981203,0.01127586,88685.0,88682.0,0.00161287]
[1765744981625,0.01127586,88685.0,88676.0,0.22553957]
[1765744981626,0.01361,88683.0,88676.0,0.22553957]
[1765744981821,0.22552745,88681.0,88675.0,0.01127713]
[1765744982045,0.11238438,88678.0,88677.0,0.01127688]
[1765744984310,0.11238438,88678.0,88677.0,0.01227688]
[1765744984532,0.11238438,88678.0,88677.0,0.01327688]
[1765744985114,0.14047438,88678.0,88677.0,0.002]
[1765744985844,0.11238438,88678.0,88677.0,0.002]
[1765744986500,0.15917438,88678.0,88677.0,0.002]
[1765744987395,0.38470946,88678.0,88677.0,0.002]
[1765744988408,0.15917438,88678.0,88677.0,0.002]
[1765744988647,0.11238438,88678.0,88677.0,0.002]
[1765744994021,0.33791946,88678.0,88677.0,0.002]
[1765744996954,0.38470946,88678.0,88677.0,0.002]
[1765745002379,0.27232508,88678.0,88677.0,0.002]
[1765745002579,0.38470946,88678.0,88677.0,0.002]
[1765745009741,0.35661946,88678.0,88677.0,0.002]
[1765745011202,0.38470946,88678.0,88677.0,0.002]
[1765745012966,0.33791946,88678.0,88677.0,0.002]
[1765745013203,0.38364946,88678.0,88677.0,0.002]
[1765745025947,0.33791946,88678.0,88677.0,0.002]